Cogmind - Beta 12 @@@ ROGUE MODE // 2023.12.30 @ 18:55:06 Player: arkn Result: Destroyed by G-73 Enforcer with Heavy Laser Performance ------------- Evolutions (7) 3500 Regions Visited (12) 2400 Robots Destroyed (114) 570 Value Destroyed (4116) 4116 Prototype IDs (35) 700 Alien Tech Used (0) 0 Bonus (2499) 2499 TOTAL SCORE: 13785 Bonus ------- Triggered Max Security 1000 High Alert Combat Kills 333 Follower Combat Kills 366 Aligned with FarCom 300 Scanned by Researcher 500 Cogmind --------- Core Integrity 0/1300 Matter 265/300 Energy 57/100 System Corruption 23% Temperature Cool (9) Movement Walking (110) Location -3/Testing Parts ------- > --- POWER (2) -------- (None) > --- PROPULSION (6) --- Improved Heavy Treads Biometal Leg > --- UTILITY (9) ------ (None) > --- WEAPON (4) ------- Compact HERF Cannon Cooled Nova Cannon > --- INVENTORY (5) ---- (None) Peak State ------------ > --- POWER ------------ Micro Antimatter Reactor > --- PROPULSION ------- Improved Heavy Treads Improved Heavy Treads Armored Heavy Treads > --- UTILITY ---------- Improved Cooling System High-capacity Storage Unit Advanced ECM Suite Improved Medium Armor Plating Centrium Heavy Armor Plating Centrium Heavy Armor Plating Long-range Tractor Beam > --- WEAPON ----------- Cooled Nova Cannon Linear Accelerator Phasing Sabre > --- INVENTORY -------- Improved Heavy Treads Biometal Leg Biometal Leg Biometal Leg Biometal Leg High-density Centrium Wheel Improved System Restoration Module Compact HERF Cannon Compact HERF Cannon Compact HERF Cannon Guided EMP Blaster [Rating: 140] Favorites ----------- Power Ion Engine Engine Ion Engine Power Core Nuclear Core Reactor Particle Reactor Propulsion Potential Leg Treads Improved Heavy Treads Leg Potential Leg Wheel High-density Centrium Wheel Hover Unit Airjet Utility Advanced Targeting Computer Device Structural Scanner Storage High-capacity Storage Unit Processor Advanced Targeting Computer Protection Experimental Utility Shielding Weapon Heavy Mace Energy Gun Arc Projector Energy Cannon Phase Cannon Ballistic Gun Assault Rifle Ballistic Cannon Heavy Flak Cannon Launcher Rocket Array Special Weapon Mining Laser Impact Weapon Heavy Mace Slashing Weapon Phasing Sabre Build | -11 -10 -10 -10 -9 -8 -7 -6 -5 -5 -4 -3 -3 ------- Run | Jun Mat Min Exi Min Mat Fac Fac Fac Ext Fac Res Tes Slots Evolved 14 | . . . . . 4 2 2 2 . 2 2 . Power 1 | . . . . . . . 1 . . . . . Propulsion 4 | . . . . . 2 . . 2 . . . . Utility 7 | . . . . . . 2 1 . . 2 2 . Weapon 2 | . . . . . 2 . . . . . . . Parts Attached 166 | 1 5 6 3 1 38 20 25 3 11 4 24 25 Power 19 | . 1 . . . 3 2 4 1 3 . 4 1 Engine 6 | . 1 . . . 1 1 1 1 1 . . . Core 8 | . . . . . 2 1 3 . 2 . . . Reactor 5 | . . . . . . . . . . . 4 1 Propulsion 61 | . . 2 2 . 12 9 9 2 4 2 11 8 Treads 10 | . . . . . 5 . . . . . 3 2 Leg 31 | . . 2 2 . 4 7 4 . 4 2 1 5 Wheel 1 | . . . . . . . . . . . . 1 Hover 19 | . . . . . 3 2 5 2 . . 7 . Flight . | . . . . . . . . . . . . . Utility 35 | 1 1 1 1 1 7 4 5 . 2 2 6 4 Device 23 | 1 . 1 . 1 7 2 3 . 1 1 5 1 Storage 3 | . 1 . 1 . . 1 . . . . . . Processor 2 | . . . . . . . 1 . 1 . . . Hackware . | . . . . . . . . . . . . . Protection 7 | . . . . . . 1 1 . . 1 1 3 Artifact . | . . . . . . . . . . . . . Weapon 51 | . 3 3 . . 16 5 7 . 2 . 3 12 Energy Gun 14 | . . . . . 8 2 3 . . . . 1 Energy Cannon 11 | . . . . . 2 . 1 . . . 1 7 Ballistic Gun 10 | . 2 2 . . 2 3 . . 1 . . . Ballistic Cannon 6 | . . . . . . . 2 . . . 2 2 Launcher 4 | . . . . . 2 . 1 . . . . 1 Special Weapon 3 | . 1 1 . . 1 . . . . . . . Impact Weapon 1 | . . . . . 1 . . . . . . . Slashing Weapon 2 | . . . . . . . . . 1 . . 1 Piercing Weapon . | . . . . . . . . . . . . . Special Melee Weapon . | . . . . . . . . . . . . . Unidentified Prototypes 12 | . . . . . 3 2 1 . . . 1 5 Corrupted Parts 1 | . . . . . 1 . . . . . . . System Corruption 2 | . . . . . 2 . . . . . . . Parts Lost 64 | . . . . . 9 6 11 2 4 1 4 27 Power 9 | . . . . . 1 1 1 1 1 . 2 2 Propulsion 18 | . . . . . 1 3 3 1 1 1 1 7 Utility 14 | . . . . . . . 2 . 1 . . 11 Weapon 23 | . . . . . 7 2 5 . 1 . 1 7 Highest Loss Streak 12 | . . . . . 4 5 5 2 2 1 2 12 To Critical Strikes 2 | . . . . . . . . 1 . . . 1 Average Slot Usage (%) 93 | . 100 100 100 100 96 99 89 88 88 91 87 57 Engine 5 | . 14 14 14 14 1 4 . 3 5 5 . . Core 3 | . . . . . 6 2 8 3 2 5 1 . Treads 2 | . . . . . 8 1 . . . . 4 9 Leg 15 | . 28 28 28 28 22 7 20 . 4 10 3 . Hover 8 | . . . . . 4 21 2 27 21 14 10 . Device 13 | . 14 14 14 14 9 15 13 11 8 10 18 13 Storage 8 | . 14 14 14 14 9 7 6 5 5 5 4 4 Processor 3 | . . . . . . . 6 5 6 10 9 4 Protection 3 | . . . . . . 7 4 5 5 8 7 4 Energy Gun 5 | . . . . . 21 8 3 . . . . . Energy Cannon 2 | . . . . . 2 . 3 5 5 5 4 1 Ballistic Gun 11 | . 27 26 28 28 6 13 6 . 2 5 1 . Ballistic Cannon 2 | . . . . . . . . 11 8 5 6 5 Impact Weapon 2 | . . . . . . 7 6 5 3 . . . Naked Turns . | . . . . . . . . . . . . . Heaviest Build 122 | 12 19 21 31 31 41 68 84 84 91 93 122 115 Greatest Support 225 | 20 20 32 60 60 77 78 78 64 42 42 225 225 Greatest Overweight (x) 4 | . . . . . 2 2 3 3 3 3 3 4 Average Overweight (x) . | . . . . . . . . 1 1 2 1 . Largest Inventory Capacity 20 | 8 10 10 15 15 15 20 20 20 20 20 20 20 Average Capacity 16 | 8 8 10 10 15 15 18 20 20 20 20 20 19 Most Carried 20 | 7 10 10 10 13 15 20 20 19 20 20 20 20 Average Carried 15 | 6 7 9 10 11 13 17 18 18 19 19 19 14 Final Capacity 20 | 8 10 10 15 15 15 20 20 20 20 20 20 5 Final Carried 20 | 7 10 10 10 13 15 19 20 18 20 20 20 . Class Distribution -------------------- 48% | Mutant 23% | Skirmisher 10% | Infiltrator-Mutant 7% | Scavenger-Assassin Dominant Class ---------------- Mutant | -10/Materials Mutant | -10/Mines Mutant | -10/Exiles Skirmisher | -9/Mines Skirmisher | -8/Materials Mutant | -7/Factory Infiltrator-Mutant | -6/Factory Mutant | -5/Factory Mutant | -5/Extension Scavenger-Mutant | -4/Factory Scavenger-Assassin | -3/Research Mutant | -3/Testing Resources | -11 -10 -10 -10 -9 -8 -7 -6 -5 -5 -4 -3 -3 ----------- Run | Jun Mat Min Exi Min Mat Fac Fac Fac Ext Fac Res Tes Matter Collected 3756 | 211 12 189 . 96 620 288 763 73 362 94 643 405 Remotely 2033 | . . 110 . 77 470 288 442 . . . 359 287 Salvage Created 4275 | 11 12 44 . 77 1203 498 1169 76 160 . 771 254 Parts 218 | 4 . 7 . 2 69 29 46 3 4 . 47 7 Haulers Intercepted 4 | . . . . . 2 . 1 . . . 1 . Recyclers Shooed 5 | . . . . . 1 . 2 . . . 2 . Parts Field Recycled . | . . . . . . . . . . . . . Retrieved Matter . | . . . . . . . . . . . . . Parts Self-Destructed . | . . . . . . . . . . . . . Prevented . | . . . . . . . . . . . . . Kills | -11 -10 -10 -10 -9 -8 -7 -6 -5 -5 -4 -3 -3 ------- Run | Jun Mat Min Exi Min Mat Fac Fac Fac Ext Fac Res Tes Combat Hostiles Destroyed 81 | . 1 3 . 2 23 12 21 2 3 . 11 3 Melee 7 | . . . . . 2 1 2 1 1 . . . Guns 26 | . 1 3 . 2 10 5 4 . . . 1 . Cannons 21 | . . . . . 2 . 3 1 2 . 10 3 AOE 24 | . . . . . 8 6 10 . . . . . Classes Destroyed 14 | 1 1 . . 1 6 1 1 2 . . . 1 Worker 9 | . . . . . 1 3 3 . . . 1 1 Builder 6 | . . . . . 3 2 1 . . . . . Tunneler 2 | 1 . . . . . . . 1 . . . . Hauler 4 | . . . . . 2 . 1 . . . 1 . Recycler 8 | . . . . . 2 1 4 . . . 1 . Watcher 3 | . . . . . 2 1 . . . . . . Swarmer 32 | . 1 3 . . 8 4 16 . . . . . Grunt 23 | . . . . 2 11 3 2 . 2 . . 3 Brawler 1 | . . . . . . . . 1 . . . . Duelist 1 | . . . . . . . . 1 . . . . Sentry 8 | . . . . . 4 2 . . . . 2 . Programmer 13 | . . . . . . 3 2 . . . 8 . Heavy 2 | . . . . . . . 1 . . . 1 . Investigator 1 | . . . . . . . . . . . . 1 Thug 1 | . . . . . . . . . 1 . . . Best Kill Streak 8 | 1 1 3 . 2 8 8 6 2 2 . 4 2 Combat Bots Only 8 | . 1 3 . 2 8 8 5 1 2 . 3 2 Max Kills in Single Turn 6 | 1 1 1 . 1 4 6 6 2 1 . 1 1 Gunslinging 1 | . . . . . . 1 . . . . . . Exploded 6 | . . . . . 3 6 5 . . . . . Melee 1 | . . . . . 1 1 1 1 1 . . . Uniques/NPCs Destroyed . | . . . . . . . . . . . . . Combat | -11 -10 -10 -10 -9 -8 -7 -6 -5 -5 -4 -3 -3 -------- Run | Jun Mat Min Exi Min Mat Fac Fac Fac Ext Fac Res Tes Damage Taken 16765 | . 148 134 . 108 1741 1187 1536 557 360 169 1840 8985 Core 2175 | . 31 . . 22 139 306 232 87 . 40 329 989 Absorbed by Shields 1775 | . . . . . . 58 . . . . . 1717 Reduced by Siege Mode 426 | . . . . . . . . . . . 55 371 Redirected to Shielding 383 | . . . . . . 50 56 . 94 18 165 . Core Remaining (%) 81 | 100 . . . 78 74 56 72 . 91 96 . . Volleys Fired 229 | 7 14 11 . 8 68 21 31 6 6 . 34 23 Largest 4 | 2 2 2 . 2 4 3 3 3 3 . 3 3 Hottest 228 | 40 100 100 . 45 226 133 140 191 191 . 228 201 Shots Fired 540 | 14 27 20 . 16 178 58 60 18 17 . 102 30 Gun 341 | 14 26 18 . 16 144 58 45 . 4 . 15 1 Cannon 181 | . . . . . 22 . 14 18 13 . 87 27 Launcher 7 | . . . . . 4 . 1 . . . . 2 Special 11 | . 1 2 . . 8 . . . . . . . Kinetic 320 | 14 26 18 . 16 59 36 35 12 11 . 68 25 Thermal 133 | . 1 2 . . 69 . 14 6 6 . 34 1 Explosive 5 | . . . . . 4 . 1 . . . . . Electromagnetic 82 | . . . . . 46 22 10 . . . . 4 Robot Hit Streak 17 | 4 2 5 . 7 17 7 12 7 6 . 16 11 Robot Miss Streak 7 | 3 2 2 . 1 7 5 7 4 1 . 3 2 Penetration Max 2 | . . . . . . . . . . . 1 2 Secondary Targets 4 | . . . . . 1 1 2 . . . . . Max Gunslinging Chain 1 | . . . . . 1 1 1 . . . . . Shots Hit Robots 370 | 7 11 9 . 13 101 35 55 19 18 . 75 27 Core Hits 250 | 1 4 4 . 5 51 34 65 14 16 . 32 24 Critical Kills 7 | . . . . . . 1 . . . . 4 2 Critical Parts Destroyed 10 | . . . . . 2 . 3 . . . 2 3 Critical Strikes 23 | . . . . . 6 1 3 . . . 7 6 Burn 4 | . . . . . 4 . . . . . . . Meltdown 1 | . . . . . . . . . . . 1 . Destroy 12 | . . . . . 2 . . . . . 5 5 Blast 2 | . . . . . . . . . . . 1 1 Smash 4 | . . . . . . 1 3 . . . . . Melee Attacks 105 | . . . . . 3 37 22 7 12 . 12 12 Impact 72 | . . . . . 3 37 22 7 3 . . . Slashing 33 | . . . . . . . . . 9 . 12 12 Piercing . | . . . . . . . . . . . . . Sneak Attacks 13 | . . . . . . 2 6 . 3 . 1 1 Combat Hostiles . | . . . . . . . . . . . . . Follow-up Attacks . | . . . . . . . . . . . . . Damage Inflicted 14486 | 63 151 122 . 197 3187 1983 3027 605 828 . 2745 1578 Guns 3600 | 63 130 95 . 189 1359 613 700 . 43 . 402 6 Cannons 4333 | . . . . . 162 . 376 362 434 . 2220 779 Explosions 4146 | . . . . . 1493 1015 1097 . . . . 541 Melee 2063 | . . . . . . 334 854 243 351 . 82 199 Ramming 344 | . 21 27 . 8 173 21 . . . . 41 53 Kinetic 5022 | 63 130 95 . 189 562 530 582 239 292 . 1606 734 Thermal 4328 | . . . . . 1498 743 763 123 185 . 1016 . Explosive 1392 | . . . . . 410 272 710 . . . . . Electromagnetic 1337 | . . . . . 544 83 118 . . . . 592 Impact 1684 | . . . . . . 334 854 243 253 . . . Slashing 379 | . . . . . . . . . 98 . 82 199 Piercing . | . . . . . . . . . . . . . Highest Corruption 23 | . . . . . 2 4 1 2 2 . 7 23 Average Corruption 2 | . . . . . 2 1 1 2 2 . 3 11 Corruption Purged 4 | . . . . . . . . . . . . 4 Corruption Blocked . | . . . . . . . . . . . . . Effects 84 | . . . . . 7 18 9 . 13 . 17 20 Message Errors 18 | . . . . . 1 3 3 . . . 7 4 Matter Fused 20 | . . . . . 3 5 2 . 5 . 3 2 Heat Flow Errors 10 | . . . . . . 4 2 . 1 . 3 . Energy Discharges 10 | . . . . . . 2 . . 2 . 1 5 Parts Rejected 1 | . . . . . . . 1 . . . . . Data Loss (minor) 12 | . . . . . 1 2 1 . 1 . 3 4 Data Loss (major) 4 | . . . . . . . . . 2 . . 2 Misfires 2 | . . . . . 1 1 . . . . . . Alerts 4 | . . . . . 1 . . . 2 . . 1 Misdirections 1 | . . . . . . . . . . . . 1 Weapon Failures 2 | . . . . . . 1 . . . . . 1 Overload Shots . | . . . . . . . . . . . . . Overflow Damage 1341 | . . . . . 413 318 454 16 108 . 32 . Projectiles 32 | . . . . . . . . . . . 32 . Explosions 758 | . . . . . 413 229 116 . . . . . Melee 551 | . . . . . . 89 338 16 108 . . . Knockbacks 28 | . . . . . . 1 3 7 4 . 6 7 Impact 6 | . . . . . . 1 3 2 . . . . Kinetic 20 | . . . . . . . . 5 3 . 6 6 Secondary 2 | . . . . . . . . . 1 . . 1 Self-Inflicted Damage 588 | . . . . . 100 219 202 . . . 15 52 Shots 12 | . . . . . 3 3 4 . . . . 2 Rammed 10 | . . . . . 1 2 . . . . 2 5 Targets Rammed 50 | . 5 3 . 1 28 2 . . . . 2 9 Kicked 40 | . 5 3 . 1 27 . . . . . . 4 Crushed . | . . . . . . . . . . . . . Highest Temperature 656 | . 20 40 . 21 475 361 271 495 301 . 656 98 Average Temperature 126 | . 10 20 . 9 143 112 88 283 116 . 149 39 Received Heat Transfer 3041 | . 30 . . 63 648 152 99 . 81 81 45 1842 Effects 16 | . . . . . 5 . . 2 . . 9 . Shutdowns 4 | . . . . . 2 . . . . . 2 . Energy Bleed 4 | . . . . . . . . 1 . . 3 . Interference 2 | . . . . . . . . . . . 2 . Short Circuit 4 | . . . . . 2 . . 1 . . 1 . Damage (minor) 1 | . . . . . 1 . . . . . . . Damage (core) 1 | . . . . . . . . . . . 1 . Siege Activations 2 | . . . . . . . . . . . 1 1 Total Turns 67 | . . . . . . . . . . . 23 44 Longest Duration 44 | . . . . . . . . . . . 23 44 Robots Corrupted . | . . . . . . . . . . . . . Combat Hostiles . | . . . . . . . . . . . . . Parts Fried 10 | . . . . . . . 10 . . . . . Impact Corruptions 16 | . . . . . . 2 12 1 1 . . . Robots Melted 2 | . . . . . 1 . . . . . 1 . Combat Hostiles 1 | . . . . . 1 . . . . . . . Parts Melted 9 | . . . . . 5 . 2 . . . 2 . Heat Transferred 4593 | . . . . . 2204 450 607 148 222 . 962 . Parts Sabotaged 5 | . . . . . . . . . . . . 5 Parts Stolen . | . . . . . . . . . . . . . Parts Stripped . | . . . . . . . . . . . . . Power Chain Reactions 4 | . . . . . 4 . . . . . . . Missiles Intercepted . | . . . . . . . . . . . . . Alert | -11 -10 -10 -10 -9 -8 -7 -6 -5 -5 -4 -3 -3 ------- Run | Jun Mat Min Exi Min Mat Fac Fac Fac Ext Fac Res Tes Peak Influence 1803 | 5 54 92 . 50 421 569 519 229 133 79 140 1803 Initial 218 | . 3 21 . . . 176 218 200 112 65 6 72 Average 204 | 4 16 35 . 15 262 191 324 206 67 40 50 1664 Maximum Alert Level 5 | . . . . . 2 2 2 1 . . . 5 Low Security (%) 61 | 100 100 100 . 100 15 74 1 3 100 100 100 . Level 1 28 | . . . . . 84 . 82 96 . . . . Level 2 6 | . . . . . . 24 15 . . . . . Level 3 . | . . . . . . . . . . . . . Level 4 . | . . . . . . . . . . . . . Level 5 . | . . . . . . . . . . . . . High Security . | . . . . . . . . . . . . . Max Security 3 | . . . . . . . . . . . . 99 Squads Dispatched 54 | . 3 . . . 7 6 6 1 2 2 6 21 Investigation 5 | . 2 . . . 1 . 1 . 1 . . . Extermination 9 | . . . . . . 3 3 . . . 3 . Reinforcement 16 | . 1 . . . 6 1 2 . 1 2 3 . Assault 22 | . . . . . . 1 . . . . . 21 Garrison 2 | . . . . . . 1 . 1 . . . . Intercept . | . . . . . . . . . . . . . Searches Triggered . | . . . . . . . . . . . . . Construction Impeded 1 | . . . . . . . . . . . 1 . Haulers Reinforced 1 | . . . . . . . . . . 1 . . Active Scanning Responses . | . . . . . . . . . . . . . Cargo Convoy Interrupts 1 | . . . . . . . . . . . 1 . Stealth | -11 -10 -10 -10 -9 -8 -7 -6 -5 -5 -4 -3 -3 --------- Run | Jun Mat Min Exi Min Mat Fac Fac Fac Ext Fac Res Tes Distress Signals 10 | . 1 . . . 5 . 1 . 1 . 1 1 Communications Jammed . | . . . . . . . . . . . . . Distress Signals . | . . . . . . . . . . . . . Times Spotted 230 | . 9 5 . 2 47 16 28 4 6 3 13 97 Peak Tracking Total 54 | . 4 3 . 2 11 7 7 2 2 3 4 54 Tactical Retreats 13 | . . . . . 5 1 1 . . . 1 5 Traps | -11 -10 -10 -10 -9 -8 -7 -6 -5 -5 -4 -3 -3 ------- Run | Jun Mat Min Exi Min Mat Fac Fac Fac Ext Fac Res Tes Traps Triggered 12 | . 1 . . . 3 4 . 1 2 . . 1 Indirectly . | . . . . . . . . . . . . . Trap Hack Attempts . | . . . . . . . . . . . . . Triggered . | . . . . . . . . . . . . . Disarmed . | . . . . . . . . . . . . . Reprogrammed . | . . . . . . . . . . . . . Reused . | . . . . . . . . . . . . . Traps Extracted . | . . . . . . . . . . . . . Installed . | . . . . . . . . . . . . . Triggered 2 | . . . . . . . . . . . 2 . Machines | -11 -10 -10 -10 -9 -8 -7 -6 -5 -5 -4 -3 -3 ---------- Run | Jun Mat Min Exi Min Mat Fac Fac Fac Ext Fac Res Tes Machines Disabled 26 | . . . . . 4 10 9 . . . . 3 Max in Single Turn 5 | . . . . . 2 5 3 . . . . 1 Garrison Access 2 | . . . . . . 2 . . . . . . Machines Repaired . | . . . . . . . . . . . . . Machines Sabotaged . | . . . . . . . . . . . . . Overloaded Fab Kills . | . . . . . . . . . . . . . Hacking | -11 -10 -10 -10 -9 -8 -7 -6 -5 -5 -4 -3 -3 --------- Run | Jun Mat Min Exi Min Mat Fac Fac Fac Ext Fac Res Tes Machines Accessed 30 | . 2 1 1 . 7 4 4 . 6 . 5 . Terminals 25 | . 1 . . . 7 3 3 . 6 . 5 . Fabricators . | . . . . . . . . . . . . . Repair Stations . | . . . . . . . . . . . . . Recycling Units 2 | . 1 . . . . . 1 . . . . . Scanalyzers . | . . . . . . . . . . . . . Garrison Access 1 | . . . . . . 1 . . . . . . Total Hacks 83 | . 5 1 1 . 33 11 7 . 13 . 12 . Successful 43 | . 3 1 1 . 15 5 3 . 8 . 7 . Failed 40 | . 2 . . . 18 6 4 . 5 . 5 . Catastrophic 8 | . . . . . . 2 1 . 2 . 3 . Database Lockouts . | . . . . . . . . . . . . . Manual 63 | . 4 . 1 . 30 10 6 . 5 . 7 . Terminals 78 | . 4 . . . 33 10 6 . 13 . 12 . Fabricators . | . . . . . . . . . . . . . Repair Stations . | . . . . . . . . . . . . . Recycling Units 2 | . 1 . . . . . 1 . . . . . Scanalyzers . | . . . . . . . . . . . . . Garrison Access 1 | . . . . . . 1 . . . . . . Terminal Hacks 18 | . . 1 1 . 4 2 . . 6 . 4 . Record 2 | . . . . . . . . . . . 2 . Open Door 5 | . . 1 . . . . . . 4 . . . Open DSF 1 | . . . . . . . . . . . 1 . Terminal Index 2 | . . . . . . 1 . . 1 . . . Registered Components 1 | . . . . . 1 . . . . . . . Zone Layout 6 | . . . . . 3 1 . . 1 . 1 . EX-Prototype ID Bank 1 | . . . 1 . . . . . . . . . Fabricator Hacks . | . . . . . . . . . . . . . Repair Station Hacks . | . . . . . . . . . . . . . Recycling Unit Hacks 2 | . 1 . . . . . 1 . . . . . Retrieve Components 2 | . 1 . . . . . 1 . . . . . Scanalyzer . | . . . . . . . . . . . . . Garrison Access Hacks 1 | . . . . . . 1 . . . . . . Seal Access 1 | . . . . . . 1 . . . . . . Unauthorized Hacks 22 | . 2 . . . 11 2 2 . 2 . 3 . Terminals 22 | . 2 . . . 11 2 2 . 2 . 3 . Track 10 | . 1 . . . 5 1 . . 1 . 2 . Assimilate 1 | . . . . . . . 1 . . . . . Botnet 11 | . 1 . . . 6 1 1 . 1 . 1 . Fabricators . | . . . . . . . . . . . . . Repair Stations . | . . . . . . . . . . . . . Recycling Units . | . . . . . . . . . . . . . Scanalyzers . | . . . . . . . . . . . . . Garrison Access . | . . . . . . . . . . . . . Data Cores Recovered . | . . . . . . . . . . . . . Used . | . . . . . . . . . . . . . Hacking Detections 20 | . 1 . . . 6 3 3 . 3 . 4 . Full Trace Events 4 | . 1 . . . 1 . 1 . 1 . . . Feedback Events . | . . . . . . . . . . . . . Feedback Blocked . | . . . . . . . . . . . . . Robot Schematics Acquired . | . . . . . . . . . . . . . Robots Built . | . . . . . . . . . . . . . Authchips . | . . . . . . . . . . . . . Time . | . . . . . . . . . . . . . Total Robot Build Rating . | . . . . . . . . . . . . . Part Schematics Acquired . | . . . . . . . . . . . . . Parts Built . | . . . . . . . . . . . . . Authchips . | . . . . . . . . . . . . . Time . | . . . . . . . . . . . . . Total Part Build Rating . | . . . . . . . . . . . . . Parts Repaired . | . . . . . . . . . . . . . Time . | . . . . . . . . . . . . . Parts Recycled . | . . . . . . . . . . . . . Recycled Matter . | . . . . . . . . . . . . . Retrieved Matter . | . . . . . . . . . . . . . Retrieved Components 12 | . 3 . . . . . 9 . . . . . Parts Scanalyzed . | . . . . . . . . . . . . . Part Schematics Acquired . | . . . . . . . . . . . . . Parts Damaged . | . . . . . . . . . . . . . Bothacking | -11 -10 -10 -10 -9 -8 -7 -6 -5 -5 -4 -3 -3 ------------ Run | Jun Mat Min Exi Min Mat Fac Fac Fac Ext Fac Res Tes Used RIF Installer . | . . . . . . . . . . . . . Robots Hacked . | . . . . . . . . . . . . . Non-combat . | . . . . . . . . . . . . . Combat . | . . . . . . . . . . . . . Robot Hacks Applied . | . . . . . . . . . . . . . Relay Couplers Released 6 | . . . . . . 2 . . . . 4 . Machine Destruction 2 | . . . . . . 2 . . . . . . Programmers 4 | . . . . . . . . . . . 4 . Fabnet Peak Effective % . | . . . . . . . . . . . . . Robots Rewired 6 | . . . . . . . . . 6 . . . Allies Hacked . | . . . . . . . . . . . . . Hacks Repelled . | . . . . . . . . . . . . . Allies | -11 -10 -10 -10 -9 -8 -7 -6 -5 -5 -4 -3 -3 -------- Run | Jun Mat Min Exi Min Mat Fac Fac Fac Ext Fac Res Tes Total Allies 16 | . . 5 . . . . . . 11 . . . Largest Group 9 | . . 5 1 1 . . . . 9 9 . . Highest-Rated Group 272 | . . 82 16 16 . . . . 272 272 . . Highest-Rated Ally 39 | . . 31 16 16 . . . . 39 39 . . Total Orders . | . . . . . . . . . . . . . Ally Attacks 75 | . . 5 . 1 . . . . 27 42 . . Total Damage 1561 | . . 48 . . . . . . 719 794 . . Kills 10 | . . 1 . . . . . . 5 4 . . Allies Corrupted . | . . . . . . . . . . . . . Allies Melted 2 | . . . . . . . . . 2 . . . Intel | -11 -10 -10 -10 -9 -8 -7 -6 -5 -5 -4 -3 -3 ------- Run | Jun Mat Min Exi Min Mat Fac Fac Fac Ext Fac Res Tes Robot Analysis Total . | . . . . . . . . . . . . . Derelict Logs Recovered 2 | . . 1 . 1 . . . . . . . . Drone Launches . | . . . . . . . . . . . . . Drone Recoveries . | . . . . . . . . . . . . . Exploration | -11 -10 -10 -10 -9 -8 -7 -6 -5 -5 -4 -3 -3 ------------- Run | Jun Mat Min Exi Min Mat Fac Fac Fac Ext Fac Res Tes Turns Passed 12395 | 97 397 934 415 1228 1941 2070 1921 131 1080 183 1590 408 Spaces Moved 6361 | 13 146 676 405 435 946 1400 807 70 485 84 727 167 Core . | . . . . . . . . . . . . . Treads 309 | . . . . . 1 . . . . . 199 109 Legs 3458 | 13 146 676 405 435 759 261 761 . . 1 . 1 Wheels 57 | . . . . . . . . . . . . 57 Hover 2537 | . . . . . 186 1139 46 70 485 83 528 . Flight . | . . . . . . . . . . . . . Fastest Speed 62 | 120 120 120 90 90 62 105 127 108 114 190 108 110 Average Speed 131 | 120 120 123 100 90 103 113 171 120 176 195 169 152 Slowest Speed 330 | 120 120 125 125 90 250 200 287 210 210 330 276 180 Overloaded Moves 64 | . . . . . 64 . . . . . . . Propulsion Burnouts . | . . . . . . . . . . . . . Robots Hopped . | . . . . . . . . . . . . . Cave-ins Triggered 1 | . . . . . . . . . . . . 1 Exploration Rate (%) 41 | 4 32 99 89 87 60 43 19 2 61 2 18 20 Regions Visited 12 Branch Regions 5 Pre-discovered Areas . | . . . . . . . . . . . . . Known Exits Taken 1 | . . . 1 . . . . . . . . . Unknown Exits Taken 11 | 1 1 1 . 1 1 1 1 1 1 1 1 . Scrap Searched 3 | . . 1 . 2 . . . . . . . . Spaces Dug 60 | . 1 . . . 11 25 5 . 1 . 11 6 Terrain Destroyed 330 | . 1 1 . . 95 101 84 2 2 . 33 11 Melee 51 | . . . . . 3 25 5 . 1 . 11 6 Projectile 43 | . 1 1 . . 8 . 3 2 1 . 22 5 AOE 236 | . . . . . 84 76 76 . . . . . Terrain Rammed . | . . . . . . . . . . . . . Walls Destroyed . | . . . . . . . . . . . . . Machines Disabled . | . . . . . . . . . . . . . Actions | -11 -10 -10 -10 -9 -8 -7 -6 -5 -5 -4 -3 -3 --------- Run | Jun Mat Min Exi Min Mat Fac Fac Fac Ext Fac Res Tes Total 9781 | 81 339 757 415 1256 1752 1776 1254 91 678 104 1009 269 Wait 2514 | 60 165 47 5 809 629 260 332 6 25 12 158 6 Move 6349 | 12 145 675 404 434 945 1399 806 69 484 83 726 167 Hop . | . . . . . . . . . . . . . Pick Up 112 | 1 3 6 . 3 23 16 21 . 12 3 19 5 Fast Attach 45 | 1 . . . . 14 3 8 1 5 . 10 3 Attach 59 | . . . . . 12 7 8 2 3 3 6 18 Detach 1 | . . . . . . . . . . . . 1 Swap 63 | . 5 6 3 1 12 10 9 . 3 1 8 5 Drop 115 | . 2 9 3 . 18 16 17 . 10 2 34 4 Fire 229 | 7 14 11 . 8 68 21 31 6 6 . 34 23 Melee 105 | . . . . . 3 37 22 7 12 . 12 12 Ram 9 | . . . . . 1 2 . . . . 1 5 Kick 40 | . 5 3 . 1 27 . . . . . . 4 Crush 1 | . . . . . . . . . . . 1 . Escape Stasis 56 | . . . . . . 5 . . 35 . . 16 Rewire 83 | . . . . . . . . . 83 . . . Trap . | . . . . . . . . . . . . . Miscellaneous . | . . . . . . . . . . . . . Route ------- -11/Junkyard -10/Materials -10/Mines (discovered 3 exits: [*Mat x2] / *Exi) -10/Exiles (discovered 2 exits: *Min x2) -9/Mines (discovered 2 exits: *Mat x2) -8/Materials -7/Factory (discovered 4 exits: *Fac x3 / [*Low]) -6/Factory -5/Factory -5/Extension (discovered 3 exits: [*Fac x2] / [*Cet]) -4/Factory -3/Research -3/Testing History --------- Turn | Location | Event 21 | -11/Junkyard | Discovered new exit (range 3) 98 | -11/Junkyard | Entered Materials 326 | -10/Materials | Build established: Mutant 457 | -10/Materials | Discovered new exit (range 11) 495 | -10/Materials | Entered Mines 591 | -10/Mines | Discovered new exit (range 10) 846 | -10/Mines | Met a Derelict who couldn't figure out how to use a Trap Extractor 973 | -10/Mines | Assembled infested the area 976 | -10/Mines | Assisted by bots powering up and referring to "LRC-V3" 1266 | -10/Mines | Discovered new exit (range 5) 1408 | -10/Mines | Deemed a non-threat by the Exiles lab entrance 1410 | -10/Mines | Discovered new exit (range 5) 1429 | -10/Mines | Entered Exiles 1429 | -10/Exiles | Accompanied by 1 ally 1430 | -10/Exiles | Identified exit to Mines 1459 | -10/Exiles | Met 8R-AWN 1482 | -10/Exiles | Met EX-HEX 1519 | -10/Exiles | Met EX-BIN 1533 | -10/Exiles | Aligned with FarCom system 1534 | -10/Exiles | Given EX-Vault access code 1566 | -10/Exiles | Opened EX-Vault 1577 | -10/Exiles | Found Potential Leg 1581 | -10/Exiles | Found Potential Leg 1604 | -10/Exiles | Warned to stay clear of 0b10 Research branches 1628 | -10/Exiles | Met EX-DEC 1661 | -10/Exiles | Visited The Gauntlet 1844 | -10/Exiles | Left Exiles lab with Potential Leg 1844 | -10/Exiles | Entered Mines 1844 | -9/Mines | Accompanied by 1 ally 1895 | -9/Mines | Found a hidden stash of uninstalled traps 1932 | -9/Mines | Found a damaged Exp. Sensor Array with a note attached 1934 | -9/Mines | Found Prototype Device 1980 | -9/Mines | Learned 8 Materials zone layouts 2486 | -9/Mines | Build established: Skirmisher 2971 | -9/Mines | Discovered new exit (range 12) 3061 | -9/Mines | Discovered new exit (range 13) 3072 | -9/Mines | Entered Materials 3072 | -8/Materials | Evolved 4 slots: Propulsion x2, Weapon x2 3511 | -8/Materials | Lost 4 parts (1p3w) 3552 | -8/Materials | Destroyed 8 combat bots 3636 | -8/Materials | Found Prototype Launcher 4801 | -8/Materials | Discovered new exit (range 16) 4907 | -8/Materials | Identified Rocket Array 5013 | -8/Materials | Entered Factory 5013 | -7/Factory | Evolved 2 slots: Utility x2 5206 | -7/Factory | Build established: Mutant 5376 | -7/Factory | Discovered new exit (range 13) 5398 | -7/Factory | Discovered new exit (range 4) 6457 | -7/Factory | Discovered new exit (range 16) 6589 | -7/Factory | Destroyed 8 combat bots 6618 | -7/Factory | Lost 5 parts (1p3n1w) 6947 | -7/Factory | Discovered new exit (range 5) 7083 | -7/Factory | Entered another Factory area 7083 | -6/Factory | Evolved 2 slots: Power x1, Utility x1 7812 | -6/Factory | Lost 5 parts (1p1u3w) 7849 | -6/Factory | Lost 3 parts (2n1u) 8103 | -6/Factory | Build established: Infiltrator-Mutant 8975 | -6/Factory | Discovered new exit (range 4) 9004 | -6/Factory | Entered another Factory area 9004 | -5/Factory | Evolved 2 slots: Propulsion x2 9024 | -5/Factory | Discovered new exit (range 10) 9045 | -5/Factory | Build established: Mutant 9095 | -5/Factory | Garrison activated, responded to threat 9135 | -5/Factory | Entered Extension 9390 | -5/Extension | Warlord forces began an assault 9562 | -5/Extension | Discovered new exit (range 3) 9615 | -5/Extension | Rescued a captive Derelict 9616 | -5/Extension | Rescued a captive Derelict 9987 | -5/Extension | Rescued a captive Derelict 9987 | -5/Extension | Rescued a captive Derelict 10113 | -5/Extension | Rescued a captive Derelict 10163 | -5/Extension | Discovered new exit (range 10) 10165 | -5/Extension | Discovered new exit (range 6) 10215 | -5/Extension | Entered Factory 10215 | -4/Factory | Accompanied by 9 allies 10215 | -4/Factory | Evolved 2 slots: Utility x2 10393 | -4/Factory | Discovered new exit (range 3) 10398 | -4/Factory | Entered Research 10398 | -3/Research | Evolved 2 slots: Utility x2 10508 | -3/Research | Discovered new exit (range 4) 10808 | -3/Research | Build established: Scavenger-Assassin 11319 | -3/Research | Cargo convoy interrupted 11624 | -3/Research | Found Prototype Protection 11624 | -3/Research | Identified Centrium Heavy Armor Plating 11640 | -3/Research | Found Centrium Heavy Armor Plating 11988 | -3/Research | Entered Testing 11989 | -3/Testing | Maximum security lockdown engaged 12051 | -3/Testing | Found Prototype Energy Cannon 12052 | -3/Testing | Identified Cld. Nova Cannon 12084 | -3/Testing | Found Prototype Energy Gun 12085 | -3/Testing | Identified Hyp. EM Gauss Rifle 12224 | -3/Testing | System corruption reached 10% 12245 | -3/Testing | Crushed by falling debris 12272 | -3/Testing | Lost 11 parts (3n6u2w) 12282 | -3/Testing | Spotted Investigator 12284 | -3/Testing | Scanned by Researcher 12316 | -3/Testing | Destroyed Investigator 12321 | -3/Testing | Core integrity fell below 50% 12361 | -3/Testing | Core integrity fell below 20% 12381 | -3/Testing | Lost 12 parts (1p3n4u4w) 12390 | -3/Testing | Spotted PP-PUJXTQHDI3 12396 | -3/Testing | Destroyed by G-73 Enforcer with Heavy Laser Last Messages --------------- 12382_ G-73 Enforcer unfolds itself. 12382_ G-67 Veteran unfolds itself. 12382_ I-47 Archangel unfolds itself. 12384_ C-30 ARC bursts open, deploying its payload. 12384_ G-73 Enforcer unfolds itself. 12384_ G-67 Veteran unfolds itself. 12384_ B-74 Champion unfolds itself. 12384_ E-15 Imp unfolds itself. 12384_ C-30 ARC bursts open, deploying its payload. 12384_ G-73 Enforcer unfolds itself. 12384_ L-61 Swordsman unfolds itself. 12384_ G-67 Veteran unfolds itself. 12387_ P-80 Master suffers critical hit (Burn). 12389_ P-80 Master resets B-74 Champion, system corruption cleaned. 12390_ E-15 Imp destroyed. 12390_ Hcp. Storage Unit destroyed. 12392_ Mic. Antimatter Reactor destroyed. 12392_ M-36 Artificer repairs G-67 Veteran. 12392_ PP-PUJXTQHDI3 resets P-80 Master, system corruption cleaned. 12395_ System corrupted: Energy discharge (-23). Map ----- +----------------------------------------------------+ | ??????????????????????????????????????????? | | ??????????????????????????????????????????? | | ??????????????????????????????????????????? | | ??????????????????????????????????????????? | | ??????????????????????????????????????????? | | ??????????????????????????????????????????? | | ??????????????????????????????????????????? | | ??????????????????????????????????????????? | | ??????????????????????????????????????????? | | ??????????????????????????????????????????? | | ??????????????????????????????????????????? | | ??????????????????????????????????????????? | | ??????????????????????????????????????????? | | ??????????????????????????????????????????? | | ??????????????????????????????????????????? | | ??????????????" ?g??g???#?????????????????? | | ?????????????? lgg????? #?????????????????? | | ?????????######/####??g #?????????????????? | | ?????????# p g #?g ??????????????????? | | ?????????# """"" # C ???????????????????? | | ?????????# g"""""C#C C???????????????????? | | ?????????# "" "" C%?????????????????????? | | ?????????# ! ggggg#??????????????????????? | | ?????????# !i gg #??????????????????????? | | ?????????#! g gbb=#??????????????????????? | | ?????????# mg pb@#??????????????????????? | | ???##########/#g####??????????????????????? | | ???? #ggh#?????????????????????????? | | ????? #lgg#?????????????????????????? | | ??????" #lgb#?????????????????????????? | | ??????" " # gl#??????????l??????????????? | | # """ " #gbb#########??g??????????????? | | # " #gh C ?????h???????? | | ?? """"" + b ?????h???????? | | ????""""" #g """ g]]! ?????????????? | | # " / """ ]!= ??????????????? | | # """ " # i""" ]!= ?????????????? | | ??????" " # ?????????????? | | ??????" # """ """ ???????????????? | | ????? # """ ""?????????????????? | | ????######### """ """????????????????? | | ????????????# ##?????????? | | ????????????# """ """?? # ?????????? | | ????????????# """ ""??" # ?????????? | | ????????????# """ """"" # ?????????? | | ????????????# # ?????????? | | ????????????# """? + ?????????? | | ????????????# ### """ # ?????????? | | ???##########% ### """ # ?????????? | | ???#/%"!%]%%%%" ### # ?????????? | +----------------------------------------------------+ Best States ------------- Heat Dissipation 73 Energy Generation 41 Energy Capacity 580 Matter Stores 300 Matter Capacity 300 Sight Range 16 Robot Scan Range 16 Terrain Scan Range 16 Terrain Scan Density 10 ECM Strength 2 Power Amplification 20 Armor Coverage 1650 Utility Shielding 90 Evasion (%) 62 Targeting Accuracy 16 Recoil Reduction 6 Item Schematics ----------------- None Robot Schematics ------------------ None Fabricated ------------ Nothing Alien Tech Used ----------------- None Achievements -------------- Can't Touch This Turtlemind Challenges ------------ None Game ------ Seed GravitonBiocellMeganuke Manual? 0 Play Time 02:26:11 Cumulative 90.7 hours Start 2023.12.30 @ 14:17:43 End 2023.12.30 @ 18:55:06 Sessions 1 Manual Loads 0 Difficulty Rogue Special Mode None Game No. 82 Rogue 82 Adventurer 0 Explorer 0 Win Type - Total 0 Types 0/0/0/0/0/0/0/0/0 Lore% 34 Gallery% 46 Achievement% 35 Wizard Run 0 Options --------- ASCII 0 Keyboard 0 Movement Numpad Keybinds 0 Fullscreen 1 Font 24/Proggy Map View 113x50 Tactical HUD 1 Map Filters NONE Filters NONE Steam 1 RUN: a864ddb5-ced5-4298-b017-11f8e14eac63